[Event "Early-Titled-Tuesday-Blitz-October-24-2023"]
[Site "Chess.com"]
[Date "2023.10.24"]
[Round "3"]
[White "Ykow"]
[Black "RNG2200"]
[Result "1-0"]
[WhiteElo "2524"]
[BlackElo "2163"]
[TimeControl "180+1"]
[EndTime "8:25:28 PDT"]
[Termination "Ykow won by resignation"]

1. e4 {[%clk 0:03:00.9]} 1... Nf6 {[%clk 0:02:59.4]} 2. e5 {[%clk 0:03:00.7]}
2... Nd5 {[%clk 0:02:59.4]} 3. d4 {[%clk 0:03:01.3]} 3... d6 {[%clk 0:02:58]} 4.
Nf3 {[%clk 0:03:02.2]} 4... Bg4 {[%clk 0:02:57.4]} 5. Be2 {[%clk 0:03:01.7]}
5... e6 {[%clk 0:02:57.3]} 6. c4 {[%clk 0:03:01.7]} 6... Nb6 {[%clk 0:02:57.1]}
7. exd6 {[%clk 0:03:01.8]} 7... cxd6 {[%clk 0:02:58]} 8. O-O {[%clk 0:03:00.9]}
8... Be7 {[%clk 0:02:56.9]} 9. h3 {[%clk 0:03:01.1]} 9... Bh5 {[%clk 0:02:56.5]}
10. Nc3 {[%clk 0:03:01.3]} 10... O-O {[%clk 0:02:56]} 11. Re1 {[%clk 0:03:01.1]}
11... d5 {[%clk 0:02:51.3]} 12. c5 {[%clk 0:03:00.6]} 12... Nc4 {[%clk
0:02:43.3]} 13. b3 {[%clk 0:02:56.6]} 13... Na5 {[%clk 0:02:43.1]} 14. b4 {[%clk
0:02:56.4]} 14... Nc4 {[%clk 0:02:42.3]} 15. Qb3 {[%clk 0:02:53.1]} 15... Nc6
{[%clk 0:02:32.5]} 16. Be3 {[%clk 0:02:39.6]} 16... a5 {[%clk 0:02:31.3]} 17. a3
{[%clk 0:02:39.1]} 17... Nxe3 {[%clk 0:02:12.8]} 18. fxe3 {[%clk 0:02:39]} 18...
axb4 {[%clk 0:02:10.3]} 19. axb4 {[%clk 0:02:38.9]} 19... Qc7 {[%clk 0:02:10.8]}
20. b5 {[%clk 0:02:33.3]} 20... Rxa1 {[%clk 0:01:56.5]} 21. Rxa1 {[%clk
0:02:31.9]} 21... Na5 {[%clk 0:01:50.7]} 22. Qb4 {[%clk 0:02:23.8]} 22... Bxf3
{[%clk 0:01:38.9]} 23. Bxf3 {[%clk 0:02:23.3]} 23... Nc4 {[%clk 0:01:38]} 24. b6
{[%clk 0:02:21.8]} 24... Qg3 {[%clk 0:01:33.7]} 25. Nd1 {[%clk 0:02:12.2]} 25...
Bg5 {[%clk 0:01:28]} 26. Qc3 {[%clk 0:02:05.9]} 26... Bd8 {[%clk 0:00:19.8]} 27.
e4 {[%clk 0:02:02.5]} 27... Bg5 {[%clk 0:00:15.8]} 28. exd5 {[%clk 0:01:58.1]}
28... Bd2 {[%clk 0:00:14.8]} 29. Qxc4 {[%clk 0:01:53.9]} 29... Qe1+ {[%clk
0:00:14.8]} 30. Qf1 {[%clk 0:01:54]} 30... Qh4 {[%clk 0:00:08.9]} 31. Qf2 {[%clk
0:01:51.8]} 1-0

[Event "Early-Titled-Tuesday-Blitz-October-24-2023"]
[Site "Chess.com"]
[Date "2023.10.24"]
[Round "3"]
[White "ferrufino64"]
[Black "Aleksandar-Topalov"]
[Result "0-1"]
[WhiteElo "2194"]
[BlackElo "2403"]
[TimeControl "180+1"]
[EndTime "8:25:28 PDT"]
[Termination "Aleksandar-Topalov won by resignation"]

1. e4 {[%clk 0:03:00.9]} 1... e6 {[%clk 0:02:56.2]} 2. d4 {[%clk 0:02:59]} 2...
d5 {[%clk 0:02:52.5]} 3. Nc3 {[%clk 0:02:58]} 3... Bb4 {[%clk 0:02:51.6]} 4. Ne2
{[%clk 0:02:57.5]} 4... Nf6 {[%clk 0:02:48.7]} 5. e5 {[%clk 0:02:54.5]} 5... Ng8
{[%clk 0:02:47.3]} 6. a3 {[%clk 0:02:50.4]} 6... Bf8 {[%clk 0:02:47.1]} 7. f4
{[%clk 0:02:49.5]} 7... h5 {[%clk 0:02:46.2]} 8. Be3 {[%clk 0:02:49]} 8... g6
{[%clk 0:02:45.5]} 9. g3 {[%clk 0:02:35.9]} 9... b6 {[%clk 0:02:45.6]} 10. Bg2
{[%clk 0:02:36.2]} 10... Ba6 {[%clk 0:02:45.5]} 11. O-O {[%clk 0:02:36.3]} 11...
Nh6 {[%clk 0:02:45.7]} 12. h3 {[%clk 0:02:32.4]} 12... Nf5 {[%clk 0:02:45.5]}
13. Bf2 {[%clk 0:02:32.3]} 13... c5 {[%clk 0:02:45.7]} 14. Re1 {[%clk
0:02:30.2]} 14... Nc6 {[%clk 0:02:42.7]} 15. dxc5 {[%clk 0:01:59.6]} 15... Bxc5
{[%clk 0:02:38.9]} 16. Bxc5 {[%clk 0:01:55.1]} 16... bxc5 {[%clk 0:02:38.9]} 17.
Kh2 {[%clk 0:01:22.6]} 17... Rb8 {[%clk 0:02:37.8]} 18. Qc1 {[%clk 0:01:20.5]}
18... Qb6 {[%clk 0:02:22.8]} 19. Rb1 {[%clk 0:01:19.3]} 19... Kf8 {[%clk
0:02:16.1]} 20. Ng1 {[%clk 0:01:17.6]} 20... Ncd4 {[%clk 0:02:04.5]} 21. Nf3
{[%clk 0:01:08.6]} 21... Nxf3+ {[%clk 0:01:58]} 22. Bxf3 {[%clk 0:01:09.5]}
22... c4 {[%clk 0:01:47.3]} 23. b3 {[%clk 0:01:04.1]} 23... Qf2+ {[%clk
0:01:46.6]} 24. Bg2 {[%clk 0:01:02.7]} 24... h4 {[%clk 0:01:47.1]} 25. g4 {[%clk
0:00:56.5]} 25... Qg3+ {[%clk 0:01:44.3]} 26. Kg1 {[%clk 0:00:55.7]} 26... Qxc3
{[%clk 0:01:38.3]} 27. gxf5 {[%clk 0:00:55.7]} 27... gxf5 {[%clk 0:01:24.4]} 28.
bxc4 {[%clk 0:00:56]} 28... Rxb1 {[%clk 0:01:22.3]} 29. Qxb1 {[%clk 0:00:56.9]}
29... Bxc4 {[%clk 0:01:21]} 30. Qb8+ {[%clk 0:00:47.5]} 30... Kg7 {[%clk
0:01:20.5]} 31. Qxa7 {[%clk 0:00:48.4]} 31... Qxe1+ {[%clk 0:01:19.7]} 32. Kh2
{[%clk 0:00:48.5]} 32... Qg3+ {[%clk 0:01:17.3]} 33. Kh1 {[%clk 0:00:48.9]} 0-1

[Event "Early-Titled-Tuesday-Blitz-October-24-2023"]
[Site "Chess.com"]
[Date "2023.10.24"]
[Round "3"]
[White "Smiechu"]
[Black "Artemiki"]
[Result "1-0"]
[WhiteElo "2509"]
[BlackElo "2304"]
[TimeControl "180+1"]
[EndTime "8:25:29 PDT"]
[Termination "Smiechu won by checkmate"]

1. e4 {[%clk 0:03:00.9]} 1... e5 {[%clk 0:02:59.3]} 2. Nf3 {[%clk 0:03:00.2]}
2... Nc6 {[%clk 0:02:59.8]} 3. d4 {[%clk 0:02:59.6]} 3... exd4 {[%clk
0:02:58.6]} 4. Nxd4 {[%clk 0:03:00.5]} 4... Nf6 {[%clk 0:02:57.5]} 5. Nxc6
{[%clk 0:03:00.1]} 5... bxc6 {[%clk 0:02:56.6]} 6. e5 {[%clk 0:03:00.5]} 6...
Qe7 {[%clk 0:02:55.1]} 7. Qe2 {[%clk 0:03:01]} 7... Nd5 {[%clk 0:02:55.4]} 8. c4
{[%clk 0:03:01.5]} 8... Ba6 {[%clk 0:02:55]} 9. b3 {[%clk 0:03:00.4]} 9... g6
{[%clk 0:02:53.7]} 10. f4 {[%clk 0:02:57.6]} 10... d6 {[%clk 0:02:47.3]} 11. Qf3
{[%clk 0:02:51.9]} 11... Nb4 {[%clk 0:02:36.1]} 12. Bd3 {[%clk 0:02:42.6]} 12...
Nxd3+ {[%clk 0:02:31.3]} 13. Qxd3 {[%clk 0:02:42.5]} 13... dxe5 {[%clk
0:02:28.5]} 14. O-O {[%clk 0:02:41.6]} 14... e4 {[%clk 0:02:22.4]} 15. Qc3
{[%clk 0:02:35.2]} 15... Rg8 {[%clk 0:02:18.2]} 16. Ba3 {[%clk 0:02:34.2]} 16...
c5 {[%clk 0:01:46.5]} 17. Nd2 {[%clk 0:02:31]} 17... f5 {[%clk 0:01:26.3]} 18.
Qa5 {[%clk 0:02:27.7]} 18... Qd6 {[%clk 0:01:19.5]} 19. Rad1 {[%clk 0:02:22.4]}
19... Qb6 {[%clk 0:01:19]} 20. Qc3 {[%clk 0:02:21.9]} 20... Bg7 {[%clk
0:01:18.2]} 21. Qh3 {[%clk 0:02:15.6]} 21... h5 {[%clk 0:01:18]} 22. Nxe4 {[%clk
0:02:05.1]} 22... fxe4 {[%clk 0:00:59]} 23. Qd7+ {[%clk 0:02:04.3]} 23... Kf8
{[%clk 0:00:57.7]} 24. f5 {[%clk 0:02:02.3]} 24... Bd4+ {[%clk 0:00:12.4]} 25.
Rxd4 {[%clk 0:02:00.4]} 25... Rg7 {[%clk 0:00:05.6]} 26. fxg6+ {[%clk
0:01:56.2]} 26... Kg8 {[%clk 0:00:05.4]} 27. Qd8+ {[%clk 0:01:56.4]} 27... Rxd8
{[%clk 0:00:04.1]} 28. Rxd8# {[%clk 0:01:57.3]} 1-0

[Event "Early-Titled-Tuesday-Blitz-October-24-2023"]
[Site "Chess.com"]
[Date "2023.10.24"]
[Round "3"]
[White "Mariia89"]
[Black "wild3000"]
[Result "0-1"]
[WhiteElo "2122"]
[BlackElo "2350"]
[TimeControl "180+1"]
[EndTime "8:25:31 PDT"]
[Termination "wild3000 won by resignation"]

1. d4 {[%clk 0:02:59.5]} 1... Nf6 {[%clk 0:02:57.3]} 2. Nf3 {[%clk 0:02:59.3]}
2... d5 {[%clk 0:02:56.7]} 3. c4 {[%clk 0:02:59.3]} 3... e6 {[%clk 0:02:56.8]}
4. Nc3 {[%clk 0:02:59.3]} 4... Be7 {[%clk 0:02:56.7]} 5. Bg5 {[%clk 0:02:58.5]}
5... O-O {[%clk 0:02:56.7]} 6. e3 {[%clk 0:02:59]} 6... Nbd7 {[%clk 0:02:54.9]}
7. Bd3 {[%clk 0:02:59.2]} 7... h6 {[%clk 0:02:54.7]} 8. Bh4 {[%clk 0:02:59.3]}
8... b6 {[%clk 0:02:53.2]} 9. cxd5 {[%clk 0:02:58.9]} 9... Nxd5 {[%clk
0:02:51.9]} 10. Nxd5 {[%clk 0:02:57.9]} 10... exd5 {[%clk 0:02:51]} 11. Bxe7
{[%clk 0:02:53.6]} 11... Qxe7 {[%clk 0:02:51.9]} 12. O-O {[%clk 0:02:54]} 12...
Bb7 {[%clk 0:02:50.8]} 13. Rc1 {[%clk 0:02:51.3]} 13... c5 {[%clk 0:02:50.8]}
14. Bb1 {[%clk 0:02:48.7]} 14... Rac8 {[%clk 0:02:44.9]} 15. Qd3 {[%clk
0:02:46.3]} 15... g6 {[%clk 0:02:44.8]} 16. Rfd1 {[%clk 0:02:44.3]} 16... Rfd8
{[%clk 0:02:42.2]} 17. h4 {[%clk 0:02:37.5]} 17... Nf6 {[%clk 0:02:29.9]} 18.
Ne5 {[%clk 0:02:33.5]} 18... Ne4 {[%clk 0:02:28.6]} 19. g3 {[%clk 0:02:29]}
19... Qf6 {[%clk 0:02:12.2]} 20. Qe2 {[%clk 0:02:28.8]} 20... Nd6 {[%clk
0:02:03.9]} 21. Qg4 {[%clk 0:02:19.3]} 21... h5 {[%clk 0:02:00.3]} 22. Qe2
{[%clk 0:02:18.4]} 22... a6 {[%clk 0:02:00.7]} 23. Nf3 {[%clk 0:02:08.2]} 23...
Ne4 {[%clk 0:01:56.4]} 24. Ne5 {[%clk 0:02:07.6]} 24... Kg7 {[%clk 0:01:54.6]}
25. Kg2 {[%clk 0:02:06.2]} 25... c4 {[%clk 0:01:37.6]} 26. Bxe4 {[%clk
0:01:53.2]} 26... dxe4 {[%clk 0:01:38.5]} 27. Nxc4 {[%clk 0:01:50]} 27... Bd5
{[%clk 0:01:26.6]} 28. b3 {[%clk 0:01:48.1]} 28... a5 {[%clk 0:01:19.6]} 29.
Nxb6 {[%clk 0:01:42]} 29... Qxb6 {[%clk 0:01:16.4]} 30. Rxc8 {[%clk 0:01:36.5]}
30... Rxc8 {[%clk 0:01:16]} 31. Qd2 {[%clk 0:01:36.5]} 31... Qb4 {[%clk
0:01:13.1]} 32. Qe2 {[%clk 0:01:36.4]} 32... Be6 {[%clk 0:01:07.1]} 33. Rd2
{[%clk 0:01:36]} 33... Bg4 {[%clk 0:01:06]} 34. Qe1 {[%clk 0:01:36.2]} 34...
Bf3+ {[%clk 0:01:05.9]} 35. Kh2 {[%clk 0:01:36.5]} 35... Qc3 {[%clk 0:01:02.6]}
36. Re2 {[%clk 0:01:27.3]} 36... Bxe2 {[%clk 0:00:58.3]} 37. Qxe2 {[%clk
0:01:28.2]} 37... Qc2 {[%clk 0:00:58.7]} 0-1

[Event "Early-Titled-Tuesday-Blitz-October-24-2023"]
[Site "Chess.com"]
[Date "2023.10.24"]
[Round "3"]
[White "xxysoul6"]
[Black "Martial2008"]
[Result "1-0"]
[WhiteElo "3003"]
[BlackElo "2658"]
[TimeControl "180+1"]
[EndTime "8:25:32 PDT"]
[Termination "xxysoul6 won by resignation"]

1. d4 {[%clk 0:03:00.9]} 1... Nf6 {[%clk 0:02:59.8]} 2. c4 {[%clk 0:03:01.3]}
2... e6 {[%clk 0:02:58.3]} 3. Nc3 {[%clk 0:03:01.4]} 3... Bb4 {[%clk 0:02:57.6]}
4. e3 {[%clk 0:03:01.9]} 4... O-O {[%clk 0:02:57.6]} 5. Bd3 {[%clk 0:03:02]}
5... c5 {[%clk 0:02:57.2]} 6. Ne2 {[%clk 0:03:01]} 6... Nc6 {[%clk 0:02:50]} 7.
O-O {[%clk 0:02:58.7]} 7... cxd4 {[%clk 0:02:47.7]} 8. exd4 {[%clk 0:02:58.6]}
8... d5 {[%clk 0:02:48.4]} 9. a3 {[%clk 0:02:55.3]} 9... Bd6 {[%clk 0:02:37.7]}
10. h3 {[%clk 0:02:30.1]} 10... dxc4 {[%clk 0:02:32]} 11. Bxc4 {[%clk 0:02:31]}
11... a6 {[%clk 0:02:31.7]} 12. Bg5 {[%clk 0:02:25.8]} 12... h6 {[%clk
0:02:30.3]} 13. Bh4 {[%clk 0:02:19.9]} 13... b5 {[%clk 0:02:27.5]} 14. Ba2
{[%clk 0:02:17.4]} 14... Bb7 {[%clk 0:02:19.2]} 15. d5 {[%clk 0:01:48.5]} 15...
exd5 {[%clk 0:01:59.5]} 16. Nxd5 {[%clk 0:01:49.4]} 16... Be7 {[%clk 0:01:59.8]}
17. Nxe7+ {[%clk 0:01:48.2]} 17... Qxe7 {[%clk 0:02:00.7]} 18. Nc3 {[%clk
0:01:44.4]} 18... Rad8 {[%clk 0:01:55.3]} 19. Nd5 {[%clk 0:01:43.5]} 19... Qe5
{[%clk 0:01:00.4]} 20. Nxf6+ {[%clk 0:01:43]} 20... gxf6 {[%clk 0:01:01.3]} 21.
Qf3 {[%clk 0:01:43.3]} 21... Kg7 {[%clk 0:00:29.7]} 22. Rae1 {[%clk 0:01:41.1]}
22... Qxb2 {[%clk 0:00:29.3]} 23. Re2 {[%clk 0:01:40.7]} 23... Qd4 {[%clk
0:00:25]} 24. Re4 {[%clk 0:01:41.1]} 24... Qb2 {[%clk 0:00:16.7]} 25. Rg4+
{[%clk 0:01:37.9]} 25... Kh7 {[%clk 0:00:16.8]} 26. Qf5+ {[%clk 0:01:37.7]} 1-0

[Event "Early-Titled-Tuesday-Blitz-October-24-2023"]
[Site "Chess.com"]
[Date "2023.10.24"]
[Round "3"]
[White "Susal_De_Silva"]
[Black "MFatigue"]
[Result "1-0"]
[WhiteElo "2746"]
[BlackElo "2480"]
[TimeControl "180+1"]
[EndTime "8:25:33 PDT"]
[Termination "Susal_De_Silva won by resignation"]

1. c4 {[%clk 0:02:59.1]} 1... c5 {[%clk 0:02:57.6]} 2. e4 {[%clk 0:02:57.5]}
2... Nc6 {[%clk 0:02:52.3]} 3. Ne2 {[%clk 0:02:57]} 3... Nf6 {[%clk 0:02:49.8]}
4. Nbc3 {[%clk 0:02:56.1]} 4... e6 {[%clk 0:02:43.8]} 5. g3 {[%clk 0:02:55]}
5... d5 {[%clk 0:02:39.5]} 6. exd5 {[%clk 0:02:54.8]} 6... exd5 {[%clk
0:02:40.4]} 7. Bg2 {[%clk 0:02:55.2]} 7... d4 {[%clk 0:02:34.7]} 8. Nd5 {[%clk
0:02:54.5]} 8... Nxd5 {[%clk 0:02:16.6]} 9. cxd5 {[%clk 0:02:49.1]} 9... Nb4
{[%clk 0:02:05.6]} 10. O-O {[%clk 0:02:43]} 10... Be7 {[%clk 0:01:58.4]} 11. Nf4
{[%clk 0:02:22.4]} 11... g5 {[%clk 0:01:35]} 12. a3 {[%clk 0:02:20.7]} 12...
gxf4 {[%clk 0:01:15.6]} 13. axb4 {[%clk 0:02:19.4]} 13... fxg3 {[%clk
0:01:16.5]} 14. fxg3 {[%clk 0:02:19.4]} 14... cxb4 {[%clk 0:00:56.9]} 15. Qh5
{[%clk 0:02:17.9]} 15... O-O {[%clk 0:00:32.1]} 16. d3 {[%clk 0:02:10.3]} 16...
Qd6 {[%clk 0:00:26.3]} 17. Bh6 {[%clk 0:01:41.1]} 17... Bd7 {[%clk 0:00:19.4]}
18. Be4 {[%clk 0:01:29.9]} 18... f5 {[%clk 0:00:19.2]} 19. Bxf8 {[%clk
0:01:29.8]} 19... Rxf8 {[%clk 0:00:15.7]} 20. Bxf5 {[%clk 0:01:29.9]} 1-0

[Event "Early-Titled-Tuesday-Blitz-October-24-2023"]
[Site "Chess.com"]
[Date "2023.10.24"]
[Round "3"]
[White "IsaqueGoncalvesSanto"]
[Black "GlavkonVVS"]
[Result "0-1"]
[WhiteElo "1824"]
[BlackElo "2513"]
[TimeControl "180+1"]
[EndTime "8:25:33 PDT"]
[Termination "GlavkonVVS won by resignation"]

1. d4 {[%clk 0:03:00.9]} 1... Nf6 {[%clk 0:03:00.1]} 2. c4 {[%clk 0:03:00.5]}
2... c5 {[%clk 0:03:00]} 3. d5 {[%clk 0:03:00.1]} 3... e6 {[%clk 0:03:00.6]} 4.
Nc3 {[%clk 0:02:59.5]} 4... exd5 {[%clk 0:03:00.9]} 5. cxd5 {[%clk 0:02:59.9]}
5... d6 {[%clk 0:03:01.5]} 6. Nf3 {[%clk 0:03:00.4]} 6... g6 {[%clk 0:03:02.1]}
7. Nd2 {[%clk 0:03:00.5]} 7... Bg7 {[%clk 0:03:02.4]} 8. Nc4 {[%clk 0:03:00.6]}
8... O-O {[%clk 0:03:02.3]} 9. Bf4 {[%clk 0:03:00]} 9... Ne8 {[%clk 0:03:02.9]}
10. h4 {[%clk 0:02:59.7]} 10... a6 {[%clk 0:02:57.2]} 11. a4 {[%clk 0:02:59.3]}
11... Nd7 {[%clk 0:02:56.5]} 12. Nxd6 {[%clk 0:02:54.4]} 12... Nxd6 {[%clk
0:02:56.3]} 13. Bxd6 {[%clk 0:02:53.9]} 13... Re8 {[%clk 0:02:49]} 14. e3 {[%clk
0:02:53.4]} 14... Qb6 {[%clk 0:02:47.9]} 15. Bxc5 {[%clk 0:02:10.6]} 15... Nxc5
{[%clk 0:02:45.8]} 16. Rb1 {[%clk 0:02:05.4]} 16... Bf5 {[%clk 0:02:44.2]} 17.
Be2 {[%clk 0:01:05.9]} 17... Bxc3+ {[%clk 0:02:41.5]} 18. bxc3 {[%clk
0:01:04.2]} 18... Qxb1 {[%clk 0:02:41.6]} 19. Qxb1 {[%clk 0:00:58.4]} 19... Bxb1
{[%clk 0:02:41.7]} 20. O-O {[%clk 0:00:58.8]} 20... Bd3 {[%clk 0:02:42]} 21.
Bxd3 {[%clk 0:00:57]} 21... Nxd3 {[%clk 0:02:42.3]} 22. Rd1 {[%clk 0:00:57.3]}
22... Nc5 {[%clk 0:02:42]} 23. a5 {[%clk 0:00:55.9]} 23... Red8 {[%clk
0:02:40.3]} 24. f3 {[%clk 0:00:54.2]} 24... Rac8 {[%clk 0:02:38.9]} 25. e4
{[%clk 0:00:45.4]} 25... Nb3 {[%clk 0:02:39.1]} 26. Rd3 {[%clk 0:00:44]} 26...
Nxa5 {[%clk 0:02:23.7]} 27. Kf2 {[%clk 0:00:44.5]} 27... Nc4 {[%clk 0:02:14.6]}
28. f4 {[%clk 0:00:40.8]} 28... f6 {[%clk 0:02:12.5]} 29. g4 {[%clk 0:00:39.9]}
29... b5 {[%clk 0:02:03.8]} 30. g5 {[%clk 0:00:39.3]} 30... fxg5 {[%clk
0:02:04.2]} 31. hxg5 {[%clk 0:00:39.4]} 31... Rf8 {[%clk 0:02:02.4]} 32. Rf3
{[%clk 0:00:30.9]} 32... Nd6 {[%clk 0:01:55.9]} 33. e5 {[%clk 0:00:28.7]} 33...
Ne4+ {[%clk 0:01:52.4]} 34. Ke3 {[%clk 0:00:25.6]} 34... Nxc3 {[%clk 0:01:52.5]}
35. Kd4 {[%clk 0:00:24.8]} 35... Rc4+ {[%clk 0:01:50.3]} 36. Kd3 {[%clk
0:00:24.2]} 36... Nxd5 {[%clk 0:01:50.2]} 0-1

[Event "Early-Titled-Tuesday-Blitz-October-24-2023"]
[Site "Chess.com"]
[Date "2023.10.24"]
[Round "3"]
[White "wanyaland"]
[Black "tetrix83"]
[Result "0-1"]
[WhiteElo "2460"]
[BlackElo "2631"]
[TimeControl "180+1"]
[EndTime "8:25:35 PDT"]
[Termination "tetrix83 won by resignation"]

1. d4 {[%clk 0:02:54.3]} 1... Nf6 {[%clk 0:02:59.5]} 2. c4 {[%clk 0:02:52.7]}
2... g6 {[%clk 0:02:59.3]} 3. Nc3 {[%clk 0:02:44.3]} 3... Bg7 {[%clk 0:03:00.2]}
4. e4 {[%clk 0:02:41.2]} 4... d6 {[%clk 0:03:00.2]} 5. f3 {[%clk 0:02:37.4]}
5... O-O {[%clk 0:02:59.9]} 6. Be3 {[%clk 0:02:34.4]} 6... e5 {[%clk 0:02:59.9]}
7. Nge2 {[%clk 0:02:31.1]} 7... c6 {[%clk 0:02:59.8]} 8. Qd2 {[%clk 0:02:27.6]}
8... Nbd7 {[%clk 0:02:54.4]} 9. g4 {[%clk 0:02:25.4]} 9... a6 {[%clk 0:02:49.8]}
10. h4 {[%clk 0:02:23.2]} 10... b5 {[%clk 0:02:43.7]} 11. h5 {[%clk 0:02:21.5]}
11... Nb6 {[%clk 0:02:29]} 12. Ng3 {[%clk 0:02:17.9]} 12... exd4 {[%clk
0:02:28.6]} 13. Bxd4 {[%clk 0:02:16.3]} 13... c5 {[%clk 0:02:28.6]} 14. Be3
{[%clk 0:02:12.2]} 14... b4 {[%clk 0:02:18.7]} 15. Nd1 {[%clk 0:02:07.5]} 15...
Be6 {[%clk 0:02:18.4]} 16. b3 {[%clk 0:02:01.1]} 16... Nxg4 {[%clk 0:02:11.4]}
17. fxg4 {[%clk 0:02:00.7]} 17... Bxa1 {[%clk 0:02:11]} 18. Qh2 {[%clk
0:01:55.7]} 18... Ra7 {[%clk 0:02:02.4]} 19. Nf5 {[%clk 0:01:50.5]} 19... gxf5
{[%clk 0:01:55]} 20. gxf5 {[%clk 0:01:48.7]} 20... Bc8 {[%clk 0:01:44.2]} 21.
Bh6 {[%clk 0:01:32.1]} 21... Re8 {[%clk 0:01:41.3]} 22. Bd3 {[%clk 0:01:28.3]}
22... Kh8 {[%clk 0:01:32.1]} 23. Ne3 {[%clk 0:01:22.6]} 23... Qf6 {[%clk
0:01:25.3]} 24. Ng4 {[%clk 0:01:13]} 24... Qxf5 {[%clk 0:01:17.3]} 25. Qe2
{[%clk 0:01:02]} 25... Qxg4 {[%clk 0:01:15]} 0-1

[Event "Early-Titled-Tuesday-Blitz-October-24-2023"]
[Site "Chess.com"]
[Date "2023.10.24"]
[Round "3"]
[White "Kostya0705"]
[Black "zeebraa"]
[Result "1-0"]
[WhiteElo "2621"]
[BlackElo "2256"]
[TimeControl "180+1"]
[EndTime "8:25:35 PDT"]
[Termination "Kostya0705 won by resignation"]

1. e4 {[%clk 0:03:00.9]} 1... c5 {[%clk 0:02:59.8]} 2. Nf3 {[%clk 0:03:01]} 2...
Nc6 {[%clk 0:02:59.9]} 3. Nc3 {[%clk 0:03:00.3]} 3... Nf6 {[%clk 0:02:59]} 4. d4
{[%clk 0:02:59.8]} 4... cxd4 {[%clk 0:02:59.1]} 5. Nxd4 {[%clk 0:03:00.2]} 5...
e5 {[%clk 0:02:59.7]} 6. Ndb5 {[%clk 0:02:59.3]} 6... d6 {[%clk 0:03:00.2]} 7.
Bg5 {[%clk 0:02:58.2]} 7... a6 {[%clk 0:02:59.8]} 8. Na3 {[%clk 0:02:57.6]} 8...
b5 {[%clk 0:03:00]} 9. Bxf6 {[%clk 0:02:58.5]} 9... gxf6 {[%clk 0:03:00.1]} 10.
Nd5 {[%clk 0:02:59.4]} 10... Bg7 {[%clk 0:03:00.6]} 11. Bd3 {[%clk 0:02:55.2]}
11... Ne7 {[%clk 0:03:00.4]} 12. Nxe7 {[%clk 0:02:52.4]} 12... Qxe7 {[%clk
0:03:01.3]} 13. O-O {[%clk 0:02:52.5]} 13... f5 {[%clk 0:03:01.3]} 14. c4 {[%clk
0:02:52.1]} 14... Bb7 {[%clk 0:02:49.6]} 15. cxb5 {[%clk 0:02:45.7]} 15... fxe4
{[%clk 0:02:37.1]} 16. bxa6 {[%clk 0:02:44.6]} 16... exd3 {[%clk 0:02:37.4]} 17.
axb7 {[%clk 0:02:44.5]} 17... Qxb7 {[%clk 0:02:38]} 18. Qxd3 {[%clk 0:02:44.9]}
18... d5 {[%clk 0:02:17.5]} 19. Nb5 {[%clk 0:02:43.9]} 19... O-O {[%clk
0:02:11.9]} 20. a4 {[%clk 0:02:42.3]} 20... e4 {[%clk 0:02:10.6]} 21. Qb3 {[%clk
0:02:39.1]} 21... d4 {[%clk 0:02:04.8]} 22. Nxd4 {[%clk 0:02:36]} 22... Qxb3
{[%clk 0:02:04.2]} 23. Nxb3 {[%clk 0:02:36.9]} 23... Bxb2 {[%clk 0:02:00.1]} 24.
Ra2 {[%clk 0:02:35.4]} 24... Be5 {[%clk 0:01:56.3]} 25. Nc5 {[%clk 0:02:33.5]}
25... Rfc8 {[%clk 0:01:47.2]} 26. Nxe4 {[%clk 0:02:12.1]} 26... Rc4 {[%clk
0:01:45]} 27. Ng5 {[%clk 0:02:11.7]} 27... Rcxa4 {[%clk 0:01:39]} 28. Re2 {[%clk
0:02:10.2]} 28... Bf6 {[%clk 0:01:31.8]} 29. Ne4 {[%clk 0:02:09.4]} 29... Bd4
{[%clk 0:01:28.6]} 30. g3 {[%clk 0:02:08.4]} 30... Ra1 {[%clk 0:01:27]} 31. Rxa1
{[%clk 0:02:07.7]} 31... Rxa1+ {[%clk 0:01:27.6]} 32. Kg2 {[%clk 0:02:08.6]}
32... Kg7 {[%clk 0:01:27.6]} 33. Nd6 {[%clk 0:02:05.8]} 33... Bf6 {[%clk
0:01:22.5]} 34. Kf3 {[%clk 0:02:03.4]} 34... Ra3+ {[%clk 0:01:20.8]} 35. Kf4
{[%clk 0:02:01.9]} 35... Ra4+ {[%clk 0:01:18.4]} 36. Kf5 {[%clk 0:01:58]} 36...
Ra5+ {[%clk 0:01:18.8]} 37. Kg4 {[%clk 0:01:58]} 37... h5+ {[%clk 0:01:17.9]}
38. Kf3 {[%clk 0:01:51.5]} 38... Kg6 {[%clk 0:01:14.7]} 39. Ne4 {[%clk
0:01:47.4]} 39... Bd4 {[%clk 0:01:10]} 40. Kg2 {[%clk 0:01:46.1]} 40... Rb5
{[%clk 0:01:00.9]} 41. Rd2 {[%clk 0:01:45.5]} 41... Be5 {[%clk 0:00:59.1]} 42.
f4 {[%clk 0:01:43.6]} 42... Rb2 {[%clk 0:00:50.6]} 43. fxe5 {[%clk 0:01:41.5]}
1-0

[Event "Early-Titled-Tuesday-Blitz-October-24-2023"]
[Site "Chess.com"]
[Date "2023.10.24"]
[Round "3"]
[White "Khromkin"]
[Black "Larina_Maria"]
[Result "1-0"]
[WhiteElo "2490"]
[BlackElo "2226"]
[TimeControl "180+1"]
[EndTime "8:25:41 PDT"]
[Termination "Khromkin won by resignation"]

1. d4 {[%clk 0:03:00.9]} 1... f5 {[%clk 0:02:57.9]} 2. e4 {[%clk 0:03:00.3]}
2... fxe4 {[%clk 0:02:57.8]} 3. Nc3 {[%clk 0:03:00.9]} 3... Nf6 {[%clk
0:02:58.5]} 4. Bg5 {[%clk 0:03:01.1]} 4... Nc6 {[%clk 0:02:58.9]} 5. d5 {[%clk
0:03:01.3]} 5... Ne5 {[%clk 0:02:59.3]} 6. Qd4 {[%clk 0:03:02]} 6... Nf7 {[%clk
0:02:58.3]} 7. Nh3 {[%clk 0:03:02.6]} 7... c6 {[%clk 0:02:48.2]} 8. O-O-O {[%clk
0:02:58.6]} 8... Qb6 {[%clk 0:02:47.8]} 9. Bxf6 {[%clk 0:02:58.2]} 9... gxf6
{[%clk 0:02:41.9]} 10. Qxe4 {[%clk 0:02:58.4]} 10... Bh6+ {[%clk 0:02:23.5]} 11.
Kb1 {[%clk 0:02:57.5]} 11... e5 {[%clk 0:01:34.4]} 12. dxe6 {[%clk 0:02:55.2]}
12... dxe6 {[%clk 0:01:33.6]} 13. Be2 {[%clk 0:02:47.5]} 13... Bd7 {[%clk
0:01:30.9]} 14. Bh5 {[%clk 0:02:46]} 14... Qc7 {[%clk 0:01:15.2]} 15. Qh4 {[%clk
0:02:19]} 15... Bg7 {[%clk 0:01:07.6]} 16. Ne4 {[%clk 0:02:02.3]} 16... Ke7
{[%clk 0:00:44.5]} 17. Bxf7 {[%clk 0:02:01.2]} 17... Kxf7 {[%clk 0:00:39.5]} 18.
Nd6+ {[%clk 0:01:56.2]} 18... Ke7 {[%clk 0:00:34.8]} 19. Rhe1 {[%clk 0:01:56.6]}
19... Raf8 {[%clk 0:00:20.4]} 20. Nf4 {[%clk 0:01:34.9]} 20... Qb6 {[%clk
0:00:07.3]} 21. Nf5+ {[%clk 0:01:31.1]} 21... Kf7 {[%clk 0:00:04.9]} 22. Rxd7+
{[%clk 0:01:29.3]} 22... Ke8 {[%clk 0:00:04.7]} 1-0